fUST/lending_fUST_20260119
["ID","MTS","AMOUNT","RATE_DAILY","PERIOD"]
[402659792,1768762241866,-1000.0,0.00013821,2]
[402659794,1768762241876,-168.0,0.00013869,2]
[402659796,1768762241885,-526.72430726,0.00013975,2]
[402659798,1768762241895,-168.0,0.00014007,2]
[402659800,1768762241905,-168.0,0.0001401,2]
[402659802,1768762241914,-168.0,0.00014023,2]
[402659804,1768762241923,-210.9277711,0.00014064,2]
[402659806,1768762241933,-168.0,0.00014086,2]
[402659808,1768762241942,-3403.92665597,0.0001419,2]
[402659810,1768762241951,-187.2597717,0.00014219,2]
[402659812,1768762241961,-600.0,0.00014221,2]
[402659814,1768762241970,-253.2021742,0.00014226,2]
[402659816,1768762241979,-501.58762465,0.00014247,2]
[402659818,1768762241987,-1000.0,0.00014247,2]
[402659820,1768762241996,-1001.0429357,0.00014247,2]
[402659822,1768762242006,-501.56070546,0.00014247,2]
[402659824,1768762242015,-1000.0,0.00014247,2]
[402659826,1768762242025,-1000.0,0.00014247,2]
[402659828,1768762242040,-1003.26299167,0.00014247,2]
[402659830,1768762242049,-1000.0,0.00014247,2]
[402659832,1768762242058,-1000.0,0.00014247,2]
[402659834,1768762242067,-502.26067135,0.00014247,2]
[402659836,1768762242076,-1000.0,0.00014247,2]
[402659838,1768762242085,-436.47618632,0.00014247,2]
[402659839,1768762242094,-237.51594032,0.00014247,2]
[402659841,1768762242103,-1004.97142812,0.00014247,2]
[402659843,1768762242112,-168.0,0.00014248,2]
[402659845,1768762242122,-168.0,0.00014327,2]
[402659847,1768762242131,-168.0,0.00014362,2]
[402659849,1768762242139,-1500.0,0.00014368,2]
[402659851,1768762242148,-1500.0,0.00014368,2]
[402659853,1768762242157,-168.0,0.00014387,2]
[402659855,1768762242167,-168.0,0.00014391,2]
[402659857,1768762242175,-151.0,0.000144,2]
[402659859,1768762242185,-14964.2948264,0.0001442,2]
[402659861,1768762242194,-5000.0,0.0001451,2]
[402659863,1768762242202,-1041.66666667,0.00014603,2]
[402659865,1768762242211,-597.6579015,0.00014712,2]
[402659867,1768762242222,-459.33649228,0.00014795,2]
[402659869,1768762242231,-157.6173925,0.00014795,2]
[402659871,1768762242239,-2000.0,0.00014916,2]
[402659873,1768762242248,-2000.0,0.00014916,2]
[402659875,1768762242258,-464.171151,0.00015068,2]
[402659877,1768762242267,-151.0,0.000151,2]
[402659879,1768762242277,-440.08717838,0.000152,2]
[402659881,1768762242286,-445.23863627,0.000152,2]
[402659883,1768762242296,-373.61,0.000154,2]
[402659885,1768762242305,-167.73800347,0.000154,2]
[402659887,1768762242314,-183.04124409,0.000154,2]
[402659889,1768762242324,-335.84118537,0.000154,2]
[402659891,1768762242333,-351.31078337,0.000154,2]
[402659893,1768762242343,-183.85445063,0.000154,2]
[402659895,1768762242352,-220.04358918,0.000154,2]
[402659897,1768762242362,-167.92059267,0.000154,2]
[402659899,1768762242371,-175.65539161,0.000154,2]
[402659901,1768762242380,-351.31078337,0.000154,2]
[402659903,1768762242389,-291.40909939,0.000154,2]
[402659905,1768762242398,-213.25336764,0.000154,2]
[402659907,1768762242407,-180.15843685,0.000154,2]
[402659909,1768762242417,-285.93881804,0.000154,2]
[402659911,1768762242431,-220.649428,0.000154,2]
[402659913,1768762242440,-175.65539161,0.000154,2]
[402659915,1768762242450,-440.08717838,0.00015461,5]
[402659917,1768762242459,-445.23863627,0.00015462,5]
[402659919,1768762242468,-2500.0,0.00015464,2]
[402659921,1768762242478,-1500.0,0.00015464,2]
[402659923,1768762242487,-10000.0,0.000155,2]
[402659925,1768762242497,-351.31078337,0.00015654,5]
[402659927,1768762242506,-351.31078337,0.00015655,5]
[402659929,1768762242516,-440.08717838,0.00015722,9]
[402659932,1768762242525,-445.23863627,0.00015724,9]
[402659933,1768762242534,-736.83305864,0.00015749,30]
[402659935,1768762242543,-500.0,0.00015749,30]
[402659937,1768762242553,-500.0,0.00015749,30]
[402659939,1768762242562,-500.0,0.00015749,30]
[402659941,1768762242572,-500.0,0.00015749,30]
[402659944,1768762242581,-500.0,0.00015749,30]
[402659947,1768762242590,-432.30062826,0.00015749,30]
[402659949,1768762242599,-151.0,0.000158,2]
[402659951,1768762242609,-351.31078337,0.00015908,9]
[402659953,1768762242618,-351.31078337,0.0001591,9]
[402659955,1768762242627,-335.84118537,0.00015926,9]
[402659957,1768762242636,-285.93881804,0.00015928,9]
[402659959,1768762242645,-596.43781852,0.00015975,2]
[402659961,1768762242654,-218.99900907,0.00015983,13]
[402659963,1768762242668,-221.08816931,0.00015983,13]
[402659965,1768762242677,-445.23863627,0.00015985,13]
[402659967,1768762242686,-201.690754,0.00015985,7]
[402659969,1768762242695,-103.36744042,0.0001599,2]
[402660308,1768762246266,-1634.02901577,0.0001583,2]
[402660320,1768762246372,-977.17604836,0.0001583,2]
[402660322,1768762246382,-8034.13181038,0.0001599,2]
[402660324,1768762246390,-525.8593345,0.00016,2]
[402660627,1768762268718,184.11,9.267e-05,2]
[402660630,1768762342137,172.39,9.073e-05,2]
[402660631,1768762342242,206.87,9.678e-05,2]
[402660632,1768762414133,177.91,9.688e-05,2]
[402660634,1768762485194,164.32,9.702e-05,2]
[402660635,1768762557202,151.78,9.72e-05,2]
[402660678,1768763145656,505.99,0.0001,2]
[402660680,1768763173052,163.55,8.219e-05,2]
[402660681,1768763173474,186.91,8.523e-05,2]
[402660682,1768763173898,210.28,8.828e-05,2]
[402660683,1768763174310,233.64,9.132e-05,2]
[402660800,1768763432084,-491.55258239,0.00010023,2]
[402660847,1768763432591,-636.48643338,0.00010023,2]
[402660848,1768763432600,-308.98214644,0.00010023,2]
[402660887,1768763438404,-251.01785356,0.00010023,2]
[402660889,1768763438415,-366.45134909,0.00010125,2]
[402660891,1768763438424,-432.41259193,0.00012125,2]
[402660893,1768763438434,-661.0,0.00013271,2]
[402660895,1768763438444,-300.0,0.00013272,2]
[402660897,1768763438454,-300.0,0.00013272,2]
[402660899,1768763438463,-300.0,0.00013272,2]
[402660901,1768763438472,-300.0,0.00013272,2]
[402660903,1768763438482,-500.0,0.00013273,2]
[402660905,1768763438491,-164.58073526,0.00013273,2]
[402660907,1768763438500,-500.0,0.00013273,2]
[402660909,1768763438509,-511.98074249,0.00013273,2]
[402660911,1768763438519,-500.0,0.00013273,2]
[402660913,1768763438528,-716.560948,0.00013699,2]
[402660915,1768763438538,-1000.0,0.00013699,2]
[402660917,1768763438548,-500.0,0.00013699,2]
[402660918,1768763438559,-500.0,0.00013699,2]
[402660920,1768763438568,-500.0,0.00013699,2]
[402660922,1768763438578,-1000.0,0.00013821,2]
[402660924,1768763438587,-1000.0,0.00013821,2]
[402660926,1768763438597,-498.37383476,0.00014125,2]
[402660928,1768763438606,-328.79744204,0.00014247,2]
[402660930,1768763438616,-1000.0,0.00014247,2]
[402660933,1768763438626,-307.34018614,0.00014247,2]
[402660935,1768763438636,-500.0,0.00014367,2]
[402660937,1768763438645,-500.0,0.00014367,2]
[402660939,1768763438655,-230.73817969,0.00014367,2]
[402660940,1768763438664,-500.0,0.00014367,2]
[402660943,1768763438674,-500.0,0.00014367,2]
[402660945,1768763438683,-1187.95123198,0.00014368,2]
[402660946,1768763438692,-1500.0,0.00014368,2]
[402660949,1768763438702,-358.0,0.00014551,2]
[402660950,1768763438711,-1041.66666667,0.00014609,2]
[402660953,1768763438721,-1015.83976105,0.00014795,2]
[402660954,1768763438731,-2000.0,0.00014916,2]
[402660957,1768763438741,-417.0,0.00015264,2]
[402660959,1768763438751,-417.0,0.00015264,2]
[402660960,1768763438760,-1500.0,0.00015464,2]
[402660962,1768763438769,-162.380719,0.0001599,2]
[402660964,1768763438779,-168.3888056,0.0001599,2]
[402660966,1768763438788,-174.61919141,0.0001599,2]
[402660968,1768763438797,-181.08010149,0.0001599,2]
[402660970,1768763438807,-187.78006525,0.0001599,2]
[402660972,1768763438816,-194.72792766,0.0001599,2]
[402660974,1768763438826,-201.93286099,0.0001599,2]
[402660976,1768763438835,-209.40437684,0.0001599,2]
[402660978,1768763438845,-217.15233878,0.0001599,2]
[402660980,1768763438855,-225.18697532,0.0001599,2]
[402660982,1768763438865,-233.51889341,0.0001599,2]
[402660984,1768763438875,-242.15909246,0.0001599,2]
[402660986,1768763438885,-251.11897888,0.0001599,2]
[402660988,1768763438896,-260.4103811,0.0001599,2]
[402660990,1768763438906,-270.0455652,0.0001599,2]
[402660993,1768763438916,-280.03725112,0.0001599,2]
[402660995,1768763438926,-290.39862941,0.0001599,2]
[402660997,1768763438936,-301.1433787,0.0001599,2]
[402660999,1768763438946,-1440.11919586,0.00016,2]
[402661001,1768763438955,-3000.0,0.00016,2]
[402661003,1768763438965,-2026.08557022,0.0001601,2]
[402661342,1768763443486,-973.91442978,0.0001601,2]
[402661344,1768763443496,-1040.51198783,0.00016012,2]
[402661346,1768763443506,-3000.0,0.0001602,2]
[402661348,1768763443515,-886.21552128,0.0001603,2]
[402661350,1768763443526,-2113.78447872,0.0001603,2]
[402661352,1768763443535,-300.5678645,0.00016039,2]
[402661354,1768763443545,-3000.0,0.0001604,2]
[402661356,1768763443553,-3000.0,0.0001605,2]
[402661358,1768763443563,-3000.0,0.0001606,2]
[402661360,1768763443572,-3000.0,0.0001607,2]
[402661362,1768763443582,-3000.0,0.0001608,2]
[402661364,1768763443591,-3000.0,0.0001609,2]
[402661366,1768763443601,-3000.0,0.000161,2]
[402661368,1768763443610,-3000.0,0.0001611,2]
[402661370,1768763443619,-3000.0,0.0001612,2]
[402661372,1768763443628,-564.3350776,0.00016125,2]
[402661374,1768763443638,-3000.0,0.0001613,2]
[402661376,1768763443647,-3000.0,0.0001614,2]
[402661377,1768763443656,-3000.0,0.0001615,2]
[402661379,1768763443665,-3000.0,0.0001616,2]
[402661381,1768763443674,-351.31078337,0.00016165,13]
[402661383,1768763443684,-3000.0,0.0001617,2]
[402661385,1768763443693,-3000.0,0.0001618,2]
[402661387,1768763443702,-3000.0,0.0001619,2]
[402661389,1768763443711,-762.0817078,0.00016192,2]
[402661391,1768763443720,-3000.0,0.000162,2]
[402661392,1768763443729,-3000.0,0.0001621,2]
[402661393,1768763443738,-719.01747956,0.0001621,2]
[402661394,1768763443747,-3000.0,0.0001622,2]
[402661395,1768763443755,-3000.0,0.0001623,2]
[402661396,1768763443764,-3000.0,0.0001624,2]
[402661397,1768763443773,-623.98039206,0.00016242,2]
[402661398,1768763443784,-95.03708749,0.00016242,2]
[402661399,1768763443793,-445.23863627,0.00016247,16]
[402661400,1768763443803,-3000.0,0.0001625,2]
[402661401,1768763443812,-3000.0,0.0001626,2]
[402661402,1768763443821,-704.00965572,0.0001627,2]
[402661651,1768763446423,-250.0,0.00014032,2]
[402661653,1768763446432,-2295.99034428,0.0001627,2]
[402661655,1768763446442,-17.59163492,0.00016274,2]
[402661773,1768764632321,-631.0,0.0001469,2]
[402661774,1768764632331,-333.87155226,0.00014739,2]
[402661776,1768764632340,-365.99353863,0.00014788,2]
[402661778,1768764632352,-158.29016137,0.00014788,2]
[402661780,1768764632361,-367.4362639,0.00014887,2]
[402661782,1768764632370,-195.98196625,0.00015788,2]
[402661785,1768764632382,-14.4155389,0.00015788,2]
[402661787,1768764632391,-2552.94499203,0.00015789,2]
[402661788,1768764632401,-26604.92794049,0.00015789,2]
[402662142,1768764643590,-954.87224156,0.00015786,2]
[402662156,1768764646494,-86.79442511,0.00015786,2]
[402662157,1768764646503,-500.77344043,0.00015789,2]
[402662158,1768764646550,-8786.94276339,0.00015789,2]
[402662358,1768765838653,-296.80329492,0.00011132,2]
[402662359,1768765838664,-576.0,0.00011132,2]
[402662360,1768765838674,-344.2066241,0.00011357,2]
[402662361,1768765838684,-406.16381643,0.00013357,2]
[402662362,1768765838695,-358.280474,0.00013699,2]
[402662363,1768765838705,-162.489039,0.00013822,2]
[402662364,1768765838715,-1040.05212264,0.0001463,2]
[402662365,1768765838726,-1193.77474536,0.0001463,2]
[402662366,1768765838736,-1041.66666667,0.00014723,2]
[402662367,1768765838746,-1794.57545647,0.00014728,2]
[402662562,1768765846645,-11413.38615874,0.00014728,2]
[402662563,1768765949405,162.16,8.625e-05,2]
[402662564,1768765950027,182.43,8.933e-05,2]
[402662565,1768765950452,198.06440396,9.241e-05,2]
[402662603,1768767031621,-440.02080224,0.00011132,2]
[402662604,1768767031631,-576.0,0.00011132,2]
[402662605,1768767031641,-345.38366152,0.00011325,2]
[402662606,1768767031651,-174.52,0.00012329,2]
[402662607,1768767031661,-4440.16954832,0.00012675,2]
[402662608,1768767031670,-407.55272059,0.00013325,2]
[402662609,1768767031680,-300.0,0.00014352,2]
[402662610,1768767031690,-300.0,0.00014352,2]
[402662611,1768767031699,-300.0,0.00014352,2]
[402662612,1768767031708,-1200.0,0.00014352,2]
[402662613,1768767031717,-300.0,0.00014352,2]
[402662614,1768767031726,-500.0,0.00014353,2]
[402662615,1768767031735,-543.35140819,0.00014353,2]
[402662616,1768767031744,-27935.15788849,0.00014354,2]
[402662617,1768767031753,-248.2824577,0.00014355,2]
[402662618,1768767031762,-3000.0,0.00014356,2]
[402662619,1768767031772,-305.1488827,0.000144,2]
[402662620,1768767031782,-305.1488827,0.000144,2]
[402662621,1768767031792,-1870.26676413,0.0001456,2]
[402662622,1768767031801,-468.03472576,0.00014563,2]
[402662623,1768767031810,-427.89216077,0.00014578,2]
[402662624,1768767031820,-3139.58457139,0.00014625,2]
[402662625,1768767031831,-701.65820271,0.00014625,2]
[402662626,1768767031843,-806.99127554,0.00014625,2]
[402662627,1768767031854,-275.48709709,0.00014625,2]
[402662660,1768767037826,-76.27885327,0.00014625,2]
[402662662,1768767037836,-208.05114671,0.00014626,2]
[402662667,1768767037880,-1727.03682074,0.00014626,2]
[402662731,1768767040100,-543.35140819,0.00014626,2]
[402662984,1768767042878,-453.0,0.00014626,2]
[402662987,1768767042890,-400.0,0.00014626,2]
[402662989,1768767042901,-2438.22292711,0.00014626,2]
[402663106,1768767045875,-1041.66666667,0.00014626,2]
[402663107,1768767045936,-1014.50609026,0.00014626,2]
[402663201,1768768237911,-496.9846115,0.00013698,2]
[402663203,1768768237921,-337.51864511,0.00013698,2]
[402663205,1768768237931,-1000.0,0.00013699,2]
[402663207,1768768237940,-300.0,0.00013742,2]
[402663209,1768768237951,-300.0,0.00013742,2]
[402663211,1768768237961,-300.0,0.00013742,2]
[402663212,1768768237970,-300.0,0.00013742,2]
[402663213,1768768237980,-1200.0,0.00013744,2]
[402663214,1768768237989,-2148.0,0.00013745,2]
[402663215,1768768237999,-1367.0,0.00013745,2]
[402663216,1768768238009,-417.0,0.00013745,2]
[402663217,1768768238019,-417.0,0.00013745,2]
[402663218,1768768238028,-715.0,0.00013745,2]
[402663219,1768768238038,-199.584,0.00013745,2]
[402663220,1768768238048,-3000.0,0.00014356,2]
[402663221,1768768238058,-342.3137286,0.000145,2]
[402663222,1768768238068,-151.0,0.000145,2]
[402663223,1768768238078,-151.0,0.000145,2]
[402663224,1768768238087,-151.0,0.000145,2]
[402663225,1768768238097,-151.0,0.000145,2]
[402663226,1768768238107,-151.0,0.000145,2]
[402663227,1768768238117,-1954.5985095,0.000145,2]
[402663228,1768768238127,-151.0,0.00014525,2]
[402663229,1768768238136,-151.0,0.00014525,2]
[402663230,1768768238146,-183.168984,0.00014525,2]
[402663231,1768768238155,-237.71943086,0.00014525,2]
[402663232,1768768238165,-253.11193,0.00014525,2]
[402663233,1768768238176,-200.0,0.00014525,2]
[402663234,1768768238186,-201.98350775,0.00014525,2]
[402663235,1768768238195,-281.178228,0.00014526,2]
[402663236,1768768238205,-151.0,0.00014526,2]
[402663237,1768768238215,-16068.11956216,0.00014526,2]
[402663238,1768768238230,-3068.87568946,0.00014526,2]
[402663244,1768768240074,-1473.19474389,0.00014526,2]
[402663245,1768768240129,-1326.66510949,0.00014526,2]
[402663517,1768768242970,-2921.17,0.00014525,2]
[402663551,1768768243281,-436.73908453,0.00014525,2]
[402663553,1768768243292,-1504.3502,0.00014525,2]
[402663555,1768768243304,-137.74071547,0.00014525,2]
[402663557,1768768243314,-369.63091933,0.00014526,2]
[402663560,1768768243325,-14184.76249413,0.00014526,2]
[402663562,1768768243337,-21314.38983847,0.00014526,2]
[402663564,1768768243348,-2439.32849533,0.00014526,2]
[402663566,1768768243359,-414.32248862,0.00014526,2]
[402663568,1768768243371,-10506.92829731,0.00014526,2]
[402663722,1768768245933,-6899.9861176,0.00014526,2]
[402663795,1768769431975,-324.29309128,0.0001146,2]
[402663797,1768769431985,-581.0,0.0001146,2]
[402663799,1768769431995,-339.82496583,0.00011581,2]
[402663801,1768769432005,-500.0,0.00013273,2]
[402663803,1768769432014,-300.0,0.00013399,2]
[402663806,1768769432023,-1200.0,0.00013399,2]
[402663807,1768769432033,-75.64838734,0.000134,2]
[402663810,1768769432044,-973.0,0.000134,2]
[402663834,1768769432264,-318.35161266,0.000134,2]
[402663836,1768769432274,-170.64838734,0.000134,2]
[402663978,1768769438074,-458.35161266,0.000134,2]
[402663980,1768769438084,-400.99345968,0.00013581,2]
[402663982,1768769438094,-179.140237,0.00013699,2]
[402663983,1768769438103,-153.0,0.000138,2]
[402663986,1768769438112,-305.1488827,0.000138,2]
[402663988,1768769438122,-601.3406238,0.000138,2]
[402663989,1768769438131,-316.1190681,0.000138,2]
[402663991,1768769438143,-194.3662609,0.00014247,2]
[402663993,1768769438153,-164.35689511,0.00014247,2]
[402663996,1768769438165,-30.00936579,0.00014247,2]
[402663998,1768769438174,-1402.61904325,0.00014356,2]
[402664254,1768769446165,-1457.6,0.00014356,2]
[402664256,1768769588242,2010.55,0.000154,120]
[402664264,1768770066166,-222.95250616,0.00010481,2]
[402664265,1768770111595,-315.79,0.00010481,2]
[402664266,1768770231723,-161.76,0.0001021,2]
[402664267,1768770231746,-106.80228605,0.00010481,2]
[402664268,1768770234550,-294.63023231,0.00010481,2]
[402664269,1768770246193,-151.06,9.81e-05,2]
[402664270,1768770246213,-67.98876977,9.959e-05,2]
[402664271,1768770248200,-168.01099792,9.959e-05,2]
[402664272,1768770250820,-113.7100253,9.959e-05,2]
[402664273,1768770250843,-170.63425009,0.00010108,2]
[402664274,1768770250864,-64.77773241,0.00010173,2]
[402664275,1768770250904,163.94331069,9.799e-05,2]
[402664276,1768770308357,159.76,9.099e-05,2]
[402664277,1768770308788,191.71,9.463e-05,2]
[402664278,1768770321663,-174.8479986,9.827e-05,2]
[402664279,1768770323388,-48.8120014,9.827e-05,2]
[402664280,1768770323412,-160.44582613,0.00010191,2]
[402664282,1768770501205,-384.11,9.8e-05,2]
[402664283,1768770501228,-117.39509059,9.82e-05,2]
[402664284,1768770503337,-40.73490941,9.82e-05,2]
[402664285,1768770503362,-122.38746061,0.00010183,2]
[402664286,1768770526681,156.36,9.455e-05,2]
[402664287,1768770531153,-160.87,9.819e-05,2]
[402664288,1768770561872,-21.55,9.819e-05,2]
[402664289,1768770561894,-247.05237002,0.00010001,2]
[402664290,1768770564731,-95.66322711,0.00010001,2]
[402664291,1768770564761,-162.86049742,0.00010183,2]
[402664292,1768770597105,150.08,9.456e-05,2]
[402664293,1768770606115,-175.09,9.82e-05,2]
[402664294,1768770606142,-102.30762998,0.00010183,2]
[402664296,1768770621775,-231.46878977,9.82e-05,2]
[402664297,1768770624058,-300.0,9.82e-05,2]
[402664319,1768770632113,-26.53121023,9.82e-05,2]
[402664321,1768770632123,-97.80237002,0.00010183,2]
[402664323,1768770632132,-225.12,0.00010547,2]
[402664325,1768770632141,-127.06641975,0.00010911,2]
[402664327,1768770632152,-123.06358025,0.00010911,2]
[402664329,1768770632161,-237.05835848,0.00011132,2]
[402664330,1768770632170,-404.40440461,0.00012001,2]
[402664332,1768770632180,-2392.11259817,0.00012675,2]
[402664334,1768770632189,-4090.56369414,0.00013118,2]
[402664335,1768770632198,-1200.0,0.00013213,2]
[402664337,1768770632207,-300.0,0.00013213,2]
[402664339,1768770632216,-500.0,0.00013214,2]
[402664341,1768770632225,-335.29892746,0.00013214,2]
[402664342,1768770632234,-500.0,0.00013214,2]
[402664344,1768770632244,-500.0,0.00013214,2]
[402664346,1768770632253,-500.0,0.00013214,2]
[402664347,1768770632262,-263.736202,0.00013214,2]
[402664349,1768770632271,-500.0,0.00013214,2]
[402664350,1768770632281,-500.0,0.00013214,2]
[402664352,1768770632291,-500.0,0.00013214,2]
[402664354,1768770632300,-583.20970216,0.00013214,2]
[402664356,1768770632309,-500.0,0.00013214,2]
[402664358,1768770632319,-500.0,0.00013214,2]
[402664360,1768770632328,-500.0,0.00013214,2]
[402664362,1768770632338,-166.4036016,0.00013214,2]
[402664364,1768770632347,-177.178351,0.00013214,2]
[402664366,1768770632356,-151.88,0.00013216,2]
[402664368,1768770632365,-2148.0,0.00013218,2]
[402664370,1768770632374,-1367.0,0.00013218,2]
[402664371,1768770632384,-629.0,0.00013218,2]
[402664372,1768770632393,-715.0,0.00013218,2]
[402664373,1768770632403,-199.584,0.00013218,2]
[402664374,1768770632412,-417.0,0.00013218,2]
[402664375,1768770632421,-417.0,0.00013218,2]
[402664376,1768770632431,-500.0,0.00013273,2]
[402664377,1768770632440,-644.03785242,0.00013273,2]
[402664378,1768770632449,-696.218428,0.00013311,2]
[402664379,1768770632459,-674.24,0.00013398,2]
[402664380,1768770632471,-178.903,0.00013398,2]
[402664381,1768770632480,-305.1488827,0.00013678,2]
[402664382,1768770632490,-1000.0,0.00013699,2]
[402664383,1768770632499,-151.0,0.00013699,2]
[402664384,1768770632509,-579.12036289,0.00013821,2]
[402664385,1768770632519,-466.09321209,0.00014001,2]
[402664386,1768770632528,-1369.25491436,0.00014225,2]
[402664387,1768770632540,-194.3662609,0.00014247,2]
[402664388,1768770632549,-381.2800803,0.00014247,2]
[402664389,1768770632558,-194.3662609,0.00014247,2]
[402664390,1768770632568,-194.3662609,0.00014247,2]
[402664391,1768770632578,-194.3662609,0.00014247,2]
[402664392,1768770632587,-6911.04960417,0.00014325,2]
[402664393,1768770632604,-508.75859215,0.00014325,2]
[402664394,1768770632615,-15402.79369866,0.00014325,2]
[402664395,1768770632626,-625.36181593,0.00014325,2]
[402664397,1768770638249,-67334.8719085,0.00014325,2]
[402664398,1768770638362,-1773.7724,0.00014325,2]
[402664472,1768770640715,-3e-08,0.00014325,2]
[402664727,1768770643281,-4285.0657763,0.00014325,2]
[402664729,1768770643292,-1059.41807264,0.00014325,2]
[402664961,1768770646425,-1626.47236513,0.00014325,2]
[402664962,1768770646436,-2858.4974,0.00014325,2]
[402664979,1768770802816,150.04,8.796e-05,2]
[402664980,1768770802950,168.79,9.11e-05,2]
[402664981,1768771013189,9681.18,9.78e-05,2]
[402664982,1768771013211,10000.01,9.78e-05,2]
[402664983,1768771013234,10000.01,9.78e-05,2]
[402664984,1768771013257,10000.01,9.78e-05,2]
[402664985,1768771013280,10000.01,9.78e-05,2]
[402664986,1768771013303,10000.01,9.78e-05,2]
[402664987,1768771013325,10000.01,9.78e-05,2]
[402664988,1768771013347,10000.01,9.78e-05,2]
[402664989,1768771013369,10000.01,9.78e-05,2]
[402664990,1768771013391,10000.01,9.78e-05,2]
[402664991,1768771015174,-343.38326697,9.78e-05,2]
[402664993,1768771017548,-344.66627544,9.78e-05,2]
[402664994,1768771020318,-201.33372456,9.78e-05,2]
[402664995,1768771021979,-441.28872917,9.78e-05,2]
[402664996,1768771026535,-300.0,9.779e-05,2]
[402664997,1768771029689,-8829.23026506,9.78e-05,2]
[402664998,1768771029806,-2469.96934755,9.78e-05,2]
[402664999,1768771433762,317.37317903,9.79e-05,2]
[402665001,1768771539570,500.0,9.724e-05,2]
[402665002,1768771541207,200.0,9.724e-05,2]
[402665003,1768771541558,200.0,9.724e-05,2]
[402665004,1768771541680,500.0,9.724e-05,2]
[402665005,1768771542455,500.0,9.724e-05,2]
[402665006,1768771544414,200.0,9.724e-05,2]
[402665007,1768771545170,283.91141278,9.724e-05,2]
[402665009,1768771641054,500.0,9.724e-05,2]
[402665015,1768771756822,500.0,9.723e-05,2]
[402665016,1768771757948,500.0,9.723e-05,2]
[402665017,1768771767675,161.13407498,9.723e-05,2]
[402665073,1768771832527,-500.0,9.86e-05,2]
[402665075,1768771832537,-500.0,9.86e-05,2]
[402665077,1768771832546,-558.0,9.86e-05,2]
[402665079,1768771832555,-1200.0,9.86e-05,2]
[402665081,1768771832565,-500.0,9.861e-05,2]
[402665083,1768771832575,-500.0,9.861e-05,2]
[402665085,1768771832585,-500.0,9.861e-05,2]
[402665087,1768771832594,-500.0,9.861e-05,2]
[402665089,1768771832604,-300.0,9.992e-05,2]
[402665091,1768771832613,-50000.0,9.994e-05,2]
[402665093,1768771832622,-335.22531856,9.995e-05,2]
[402665095,1768771832631,-340.13843442,9.997e-05,2]
[402665096,1768771832640,-500.0,9.997e-05,2]
[402665098,1768771832650,-500.0,9.998e-05,2]
[402665100,1768771832661,-500.0,9.998e-05,2]
[402665103,1768771832671,-500.0,9.998e-05,2]
[402665104,1768771832680,-200.0,9.998e-05,2]
[402665106,1768771832689,-500.0,9.998e-05,2]
[402665108,1768771832698,-524.66381253,0.0001,2]
[402665110,1768771832707,-500.0,0.00010134,2]
[402665112,1768771832717,-500.0,0.00010135,2]
[402665114,1768771832727,-500.0,0.00010135,2]
[402665116,1768771832737,-500.0,0.00010135,2]
[402665118,1768771832746,-500.0,0.00010135,2]
[402665120,1768771832755,-500.0,0.00010271,2]
[402665122,1768771832765,-500.0,0.00010272,2]
[402665124,1768771832774,-218.43733992,0.00010272,2]
[402665126,1768771832783,-500.0,0.00010272,2]
[402665127,1768771832792,-500.0,0.00010272,2]
[402665130,1768771832802,-500.0,0.00010409,2]
[402665131,1768771832812,-500.0,0.00010409,2]
[402665134,1768771832821,-500.0,0.00010409,2]
[402665135,1768771832830,-179.54479242,0.00010536,2]
[402665137,1768771832840,-244.90546134,0.00010536,2]
[402665139,1768771832850,-2309.4849205,0.00010537,2]
[402665141,1768771832859,-500.0,0.00010546,2]
[402665143,1768771832868,-192.89467036,0.00010683,2]
[402665145,1768771832878,-1680.0,0.00010846,2]
[402665147,1768771832887,-420.0,0.00010991,2]
[402665149,1768771832897,-221.95151213,0.00011132,2]